[Event "12h Blitz Kuppenheim Vorrunde"]
[Site "Kuppenheim"]
[Date "2005.06.03"]
[Round "?"]
[White "Ahner"]
[Black "KingLoek"]
[Result "0-1"]
[ECO "B84"]
[WhiteElo "2085"]
[BlackElo "2685"]
[PlyCount "110"]
[EventDate "2005.06.03"]
[EventType "blitz"]
[Source "Kuppenheim"]
[SourceDate "2005.01.01"]
[TimeControl "240"]

1. e4 {[%emt 0:00:02]} c5 {[%emt 0:00:01]} 2. Nf3 {[%emt 0:00:01]} d6 {
[%emt 0:00:01]} 3. d4 {[%emt 0:00:01]} cxd4 {[%emt 0:00:01]} 4. Nxd4 {
[%emt 0:00:01]} Nf6 {[%emt 0:00:01]} 5. Nc3 {[%emt 0:00:01]} a6 {[%emt 0:00:01]
} 6. Be2 {[%emt 0:00:02]} e6 {[%emt 0:00:01]} 7. g4 {[%emt 0:00:02]} h6 {
[%emt 0:00:05]} 8. f4 {[%emt 0:00:02]} Nc6 {[%emt 0:00:08]} 9. Be3 {
[%emt 0:00:02]} Qb6 {[%emt 0:00:12]} 10. Qd2 {[%emt 0:00:03]} Qc7 {
[%emt 0:00:18]} 11. O-O-O {[%emt 0:00:07]} Bd7 {[%emt 0:00:03]} 12. g5 {
[%emt 0:00:09]} hxg5 {[%emt 0:00:04]} 13. fxg5 {[%emt 0:00:01]} Nh5 {
[%emt 0:00:02]} 14. Bg4 {[%emt 0:00:14]} Ne5 {[%emt 0:00:04]} 15. Bxh5 {
[%emt 0:00:14]} Rxh5 {[%emt 0:00:02]} 16. Qe2 {[%emt 0:00:02]} g6 {
[%emt 0:00:03]} 17. Bf4 {[%emt 0:00:11]} Nc4 {[%emt 0:00:05]} 18. Nb3 {
[%emt 0:00:16]} Rc8 {[%emt 0:00:03]} 19. e5 {[%emt 0:00:17]} dxe5 {
[%emt 0:00:12]} 20. Ne4 {[%emt 0:00:05]} Be7 {[%emt 0:00:03]} 21. Bg3 {
[%emt 0:00:11]} Bb5 {[%emt 0:00:14]} 22. Qf2 {[%emt 0:00:10]} a5 {
[%emt 0:00:22]} 23. Nd4 {[%emt 0:00:10]} Qb6 {[%emt 0:00:21]} 24. Nxb5 {
[%emt 0:00:08]} Qxb5 {[%emt 0:00:03]} 25. c3 {[%emt 0:00:04]} Qa4 {
[%emt 0:00:15]} 26. Kb1 {[%emt 0:00:05]} Nxb2 {[%emt 0:00:13]} 27. Qxb2 {
[%emt 0:00:03]} Qxe4+ {[%emt 0:00:01]} 28. Ka1 {[%emt 0:00:01]} Rxg5 {
[%emt 0:00:07]} 29. Rhe1 {[%emt 0:00:03]} Qc6 {[%emt 0:00:01]} 30. Rxe5 {
[%emt 0:00:06]} Rxe5 {[%emt 0:00:03]} 31. Bxe5 {[%emt 0:00:02]} b5 {
[%emt 0:00:00]} 32. Qf2 {[%emt 0:00:07]} Rd8 {[%emt 0:00:03]} 33. Rf1 {
[%emt 0:00:04]} f5 {[%emt 0:00:02]} 34. Qg3 {[%emt 0:00:03]} g5 {[%emt 0:00:01]
} 35. Qh3 {[%emt 0:00:02]} Qe4 {[%emt 0:00:04]} 36. Qh5+ {[%emt 0:00:02]} Kd7 {
[%emt 0:00:01]} 37. Rd1+ {[%emt 0:00:02]} Kc8 {[%emt 0:00:02]} 38. Rxd8+ {
[%emt 0:00:09]} Kxd8 {[%emt 0:00:00]} 39. Qh8+ {[%emt 0:00:02]} Kd7 {
[%emt 0:00:01]} 40. Qb8 {[%emt 0:00:02]} Qh1+ {[%emt 0:00:03]} 41. Kb2 {
[%emt 0:00:01]} Qg2+ {[%emt 0:00:00]} 42. Kb1 {[%emt 0:00:03]} Qc6 {
[%emt 0:00:00]} 43. Qa7+ {[%emt 0:00:03]} Ke8 {[%emt 0:00:01]} 44. Qd4 {
[%emt 0:00:02]} Kf7 {[%emt 0:00:01]} 45. Bh8 {[%emt 0:00:05]} a4 {
[%emt 0:00:01]} 46. Qg7+ {[%emt 0:00:01]} Ke8 {[%emt 0:00:01]} 47. Qg8+ {
[%emt 0:00:01]} Kd7 {[%emt 0:00:01]} 48. Qg6 {[%emt 0:00:03]} a3 {
[%emt 0:00:02]} 49. Bd4 {[%emt 0:00:02]} Qe4+ {[%emt 0:00:01]} 50. Kc1 {
[%emt 0:00:03]} Bd6 {[%emt 0:00:01]} 51. Qf7+ {[%emt 0:00:02]} Be7 {
[%emt 0:00:02]} 52. Bc5 {[%emt 0:00:03]} Qf4+ {[%emt 0:00:01]} 53. Kc2 {
[%emt 0:00:02]} Qe4+ {[%emt 0:00:02]} 54. Kb3 {[%emt 0:00:01]} Qc4+ {
[%emt 0:00:01]} 55. Kc2 {[%emt 0:00:02]} Qxc5 {
Weiß gibt auf (Lag: Av=0.45s, max=0.7s) . [%emt 0:00:01]} 0-1

[Event "12h Blitz Kuppenheim Vorrunde"]
[Site "Kuppenheim"]
[Date "2005.06.03"]
[Round "?"]
[White "KingLoek"]
[Black "Kabisch, 1780."]
[Result "1-0"]
[ECO "B00"]
[WhiteElo "2685"]
[BlackElo "1780"]
[PlyCount "33"]
[EventDate "2005.06.03"]
[EventType "blitz"]
[Source "Kuppenheim"]
[SourceDate "2005.01.01"]
[TimeControl "240"]

1. e4 {[%emt 0:00:02]} Nc6 {[%emt 0:00:08]} 2. d4 {[%emt 0:00:02]} d5 {
[%emt 0:00:04]} 3. e5 {[%emt 0:00:03]} e6 {[%emt 0:00:03]} 4. c3 {
[%emt 0:00:06]} Nge7 {[%emt 0:00:05]} 5. Bd3 {[%emt 0:00:02]} Ng6 {
[%emt 0:00:04]} 6. Nf3 {[%emt 0:00:04]} Be7 {[%emt 0:00:03]} 7. g3 {
[%emt 0:00:02]} O-O {[%emt 0:00:06]} 8. h4 {[%emt 0:00:02]} h6 {[%emt 0:00:05]}
9. Nh2 {[%emt 0:00:10]} Na5 {[%emt 0:00:11]} 10. Qg4 {[%emt 0:00:05]} Qe8 {
[%emt 0:00:17]} 11. h5 {[%emt 0:00:05]} Nh8 {[%emt 0:00:05]} 12. Bxh6 {
[%emt 0:00:02]} g6 {[%emt 0:00:08]} 13. Nf3 {[%emt 0:00:11]} c5 {[%emt 0:00:15]
} 14. hxg6 {[%emt 0:00:05]} fxg6 {[%emt 0:00:04]} 15. Ng5 {[%emt 0:00:12]} Bxg5
{[%emt 0:00:07]} 16. Bxg5 {[%emt 0:00:04]} c4 {[%emt 0:00:15]} 17. Qh4 {
Kuppenheim gibt auf  (Lag: Av=0.48s, max=0.8s) [%emt 0:00:10]} 1-0

[Event "12h Blitz Kuppenheim Vorrunde"]
[Site "Kuppenheim"]
[Date "2005.06.03"]
[Round "?"]
[White "Thoms"]
[Black "KingLoek"]
[Result "0-1"]
[ECO "C67"]
[WhiteElo "2094"]
[BlackElo "2685"]
[PlyCount "68"]
[EventDate "2005.06.03"]
[EventType "blitz"]
[Source "Kuppenheim"]
[SourceDate "2005.01.01"]
[TimeControl "240"]

1. e4 {[%emt 0:00:03]} e5 {[%emt 0:00:02]} 2. Nf3 {[%emt 0:00:03]} Nc6 {
[%emt 0:00:01]} 3. Bb5 {[%emt 0:00:01]} Nf6 {[%emt 0:00:02]} 4. O-O {
[%emt 0:00:02]} Nxe4 {[%emt 0:00:01]} 5. Re1 {[%emt 0:00:03]} Nd6 {
[%emt 0:00:02]} 6. Bxc6 {[%emt 0:00:02]} dxc6 {[%emt 0:00:01]} 7. Nxe5 {
[%emt 0:00:01]} Be7 {[%emt 0:00:01]} 8. d4 {[%emt 0:00:01]} O-O {[%emt 0:00:01]
} 9. Bf4 {[%emt 0:00:02]} Be6 {[%emt 0:00:03]} 10. Nd2 {[%emt 0:00:02]} Re8 {
[%emt 0:00:11]} 11. Ndf3 {[%emt 0:00:02]} Bf8 {[%emt 0:00:03]} 12. c3 {
[%emt 0:00:02]} f6 {[%emt 0:00:01]} 13. Nd3 {[%emt 0:00:03]} b6 {[%emt 0:00:03]
} 14. Qa4 {[%emt 0:00:07]} Qd7 {[%emt 0:00:02]} 15. h3 {[%emt 0:00:03]} a5 {
[%emt 0:00:02]} 16. a3 {[%emt 0:00:03]} Bd5 {[%emt 0:00:03]} 17. Qd1 {
[%emt 0:00:03]} Nc4 {[%emt 0:00:05]} 18. Rxe8 {[%emt 0:00:03]} Rxe8 {
[%emt 0:00:03]} 19. b3 {[%emt 0:00:05]} Nxa3 {[%emt 0:00:13]} 20. Be3 {
[%emt 0:00:13]} Nb5 {[%emt 0:00:07]} 21. c4 {[%emt 0:00:03]} Bxf3 {
[%emt 0:00:07]} 22. Qxf3 {[%emt 0:00:01]} Nxd4 {[%emt 0:00:00]} 23. Bxd4 {
[%emt 0:00:07]} Qxd4 {[%emt 0:00:02]} 24. Nf4 {[%emt 0:00:02]} Qxa1+ {
[%emt 0:00:02]} 25. Kh2 {[%emt 0:00:02]} Bd6 {[%emt 0:00:02]} 26. g3 {
[%emt 0:00:02]} Bxf4 {[%emt 0:00:02]} 27. Qxf4 {[%emt 0:00:01]} Qe5 {
[%emt 0:00:03]} 28. Qf3 {[%emt 0:00:03]} Qe2 {[%emt 0:00:02]} 29. Qf4 {
[%emt 0:00:04]} Re5 {[%emt 0:00:07]} 30. h4 {[%emt 0:00:02]} h5 {[%emt 0:00:05]
} 31. Qd4 {[%emt 0:00:02]} c5 {[%emt 0:00:06]} 32. Qf4 {[%emt 0:00:05]} Kf7 {
[%emt 0:00:02]} 33. Kg2 {[%emt 0:00:05]} Qe4+ {[%emt 0:00:02]} 34. Qxe4 {
[%emt 0:00:02]} Rxe4 {
Kuppenheim gibt auf  (Lag: Av=0.50s, max=1.5s) [%emt 0:00:01]} 0-1

[Event "12h Blitz Kuppenheim Vorrunde"]
[Site "Kuppenheim"]
[Date "2005.06.03"]
[Round "?"]
[White "KingLoek"]
[Black "Paleologu"]
[Result "1-0"]
[ECO "B07"]
[WhiteElo "2685"]
[BlackElo "2150"]
[PlyCount "49"]
[EventDate "2005.06.03"]
[EventType "blitz"]
[Source "Kuppenheim"]
[SourceDate "2005.01.01"]
[TimeControl "240"]

1. e4 {[%emt 0:00:03]} d6 {[%emt 0:00:04]} 2. d4 {[%emt 0:00:03]} Nf6 {
[%emt 0:00:03]} 3. Nc3 {[%emt 0:00:02]} c6 {[%emt 0:00:04]} 4. f4 {
[%emt 0:00:02]} d5 {[%emt 0:00:10]} 5. e5 {[%emt 0:00:04]} Ne4 {[%emt 0:00:03]}
6. Nxe4 {[%emt 0:00:04]} dxe4 {[%emt 0:00:02]} 7. Ne2 {[%emt 0:00:01]} Na6 {
[%emt 0:00:11]} 8. Ng3 {[%emt 0:00:07]} g6 {[%emt 0:00:25]} 9. Nxe4 {
[%emt 0:00:04]} Bf5 {[%emt 0:00:05]} 10. Ng3 {[%emt 0:00:02]} e6 {
[%emt 0:00:09]} 11. Nxf5 {[%emt 0:00:05]} exf5 {[%emt 0:00:04]} 12. Be2 {
[%emt 0:00:10]} Be7 {[%emt 0:00:12]} 13. O-O {[%emt 0:00:01]} O-O {
[%emt 0:00:02]} 14. Bf3 {[%emt 0:00:06]} f6 {[%emt 0:00:09]} 15. c4 {
[%emt 0:00:09]} Qd7 {[%emt 0:00:08]} 16. d5 {[%emt 0:00:05]} Bc5+ {
[%emt 0:00:05]} 17. Kh1 {[%emt 0:00:02]} fxe5 {[%emt 0:00:05]} 18. fxe5 {
[%emt 0:00:02]} cxd5 {[%emt 0:00:10]} 19. Qxd5+ {[%emt 0:00:05]} Qf7 {
[%emt 0:00:08]} 20. Qxb7 {[%emt 0:00:14]} Nb4 {[%emt 0:00:07]} 21. Qxf7+ {
[%emt 0:00:07]} Kxf7 {[%emt 0:00:05]} 22. Bxa8 {[%emt 0:00:04]} Rxa8 {
[%emt 0:00:02]} 23. Rd1 {[%emt 0:00:07]} Nc2 {[%emt 0:00:08]} 24. Rb1 {
[%emt 0:00:02]} Bd4 {[%emt 0:00:04]} 25. Rd2 {
Kuppenheim gibt auf  (Lag: Av=0.52s, max=1.3s) [%emt 0:00:04]} 1-0

[Event "12h Blitz Kuppenheim Vorrunde"]
[Site "Kuppenheim"]
[Date "2005.06.03"]
[Round "?"]
[White "Holzinger"]
[Black "KingLoek"]
[Result "0-1"]
[ECO "C26"]
[WhiteElo "1900"]
[BlackElo "2685"]
[PlyCount "78"]
[EventDate "2005.06.03"]
[EventType "blitz"]
[Source "Kuppenheim"]
[SourceDate "2005.01.01"]
[TimeControl "240"]

1. e4 {[%emt 0:00:04]} e5 {[%emt 0:00:01]} 2. Nc3 {[%emt 0:00:02]} Nc6 {
[%emt 0:00:01]} 3. g3 {[%emt 0:00:01]} Bc5 {[%emt 0:00:02]} 4. Bg2 {
[%emt 0:00:00]} d6 {[%emt 0:00:02]} 5. Na4 {[%emt 0:00:01]} h5 {[%emt 0:00:04]}
6. Nxc5 {[%emt 0:00:01]} dxc5 {[%emt 0:00:02]} 7. h4 {[%emt 0:00:00]} Nf6 {
[%emt 0:00:07]} 8. d3 {[%emt 0:00:01]} Be6 {[%emt 0:00:06]} 9. Bg5 {
[%emt 0:00:02]} Qd6 {[%emt 0:00:04]} 10. Ne2 {[%emt 0:00:04]} O-O-O {
[%emt 0:00:05]} 11. Qd2 {[%emt 0:00:01]} Kb8 {[%emt 0:00:09]} 12. O-O-O {
[%emt 0:00:02]} Bxa2 {[%emt 0:00:08]} 13. Nc3 {[%emt 0:00:08]} Be6 {
[%emt 0:00:04]} 14. f4 {[%emt 0:00:03]} Rhe8 {[%emt 0:00:13]} 15. f5 {
[%emt 0:00:02]} Bc8 {[%emt 0:00:02]} 16. Be3 {[%emt 0:00:02]} Ng4 {
[%emt 0:00:04]} 17. Nb5 {[%emt 0:00:04]} Qe7 {[%emt 0:00:03]} 18. Bg1 {
[%emt 0:00:03]} Nd4 {[%emt 0:00:10]} 19. Qa5 {[%emt 0:00:10]} a6 {
[%emt 0:00:09]} 20. Na3 {[%emt 0:00:05]} b6 {[%emt 0:00:04]} 21. Qe1 {
[%emt 0:00:06]} a5 {[%emt 0:00:03]} 22. Kb1 {[%emt 0:00:03]} Ba6 {
[%emt 0:00:02]} 23. Bh3 {[%emt 0:00:20]} Qd7 {[%emt 0:00:05]} 24. Bxg4 {
[%emt 0:00:05]} hxg4 {[%emt 0:00:01]} 25. h5 {[%emt 0:00:05]} Nf3 {
[%emt 0:00:05]} 26. Qf2 {[%emt 0:00:03]} Rh8 {[%emt 0:00:04]} 27. Qg2 {
[%emt 0:00:04]} f6 {[%emt 0:00:04]} 28. Be3 {[%emt 0:00:01]} Qf7 {
[%emt 0:00:02]} 29. h6 {[%emt 0:00:03]} gxh6 {[%emt 0:00:01]} 30. Rxh6 {
[%emt 0:00:03]} Rxh6 {[%emt 0:00:01]} 31. Bxh6 {[%emt 0:00:01]} Rh8 {
[%emt 0:00:00]} 32. Bc1 {[%emt 0:00:03]} Rh2 {[%emt 0:00:02]} 33. Qf1 {
[%emt 0:00:00]} Qd7 {[%emt 0:00:07]} 34. Be3 {[%emt 0:00:01]} Qa4 {
[%emt 0:00:03]} 35. Rc1 {[%emt 0:00:05]} Qb4 {[%emt 0:00:05]} 36. Qd1 {
[%emt 0:00:04]} Qa4 {[%emt 0:00:09]} 37. Bg1 {[%emt 0:00:07]} Rd2 {
[%emt 0:00:18]} 38. Qf1 {[%emt 0:00:05]} Rxd3 {[%emt 0:00:01]} 39. Qe2 {
[%emt 0:00:13]} Rxa3 {
Kuppenheim gibt auf  (Lag: Av=0.55s, max=1.2s) [%emt 0:00:07]} 0-1

[Event "12h Blitz Kuppenheim Vorrunde"]
[Site "Kuppenheim"]
[Date "2005.06.03"]
[Round "?"]
[White "KingLoek"]
[Black "Morawietz"]
[Result "1-0"]
[ECO "C89"]
[WhiteElo "2685"]
[BlackElo "1830"]
[PlyCount "131"]
[EventDate "2005.06.03"]
[EventType "blitz"]
[Source "Kuppenheim"]
[SourceDate "2005.01.01"]
[TimeControl "240"]

1. e4 {[%emt 0:00:02]} e5 {[%emt 0:00:01]} 2. Nf3 {[%emt 0:00:02]} Nc6 {
[%emt 0:00:00]} 3. Bb5 {[%emt 0:00:03]} a6 {[%emt 0:00:01]} 4. Ba4 {
[%emt 0:00:03]} Nf6 {[%emt 0:00:01]} 5. O-O {[%emt 0:00:02]} b5 {[%emt 0:00:01]
} 6. Bb3 {[%emt 0:00:01]} Be7 {[%emt 0:00:01]} 7. Re1 {[%emt 0:00:01]} O-O {
[%emt 0:00:01]} 8. c3 {[%emt 0:00:01]} d5 {[%emt 0:00:01]} 9. exd5 {
[%emt 0:00:01]} Nxd5 {[%emt 0:00:03]} 10. Nxe5 {[%emt 0:00:03]} Nxe5 {
[%emt 0:00:02]} 11. Rxe5 {[%emt 0:00:01]} c6 {[%emt 0:00:01]} 12. d4 {
[%emt 0:00:04]} Bd6 {[%emt 0:00:01]} 13. Re1 {[%emt 0:00:03]} Qh4 {
[%emt 0:00:01]} 14. g3 {[%emt 0:00:05]} Qh3 {[%emt 0:00:01]} 15. Qd3 {
[%emt 0:00:11]} Bf5 {[%emt 0:00:14]} 16. Qf1 {[%emt 0:00:02]} Qh5 {
[%emt 0:00:02]} 17. Be3 {[%emt 0:00:07]} Bh3 {[%emt 0:00:04]} 18. Qe2 {
[%emt 0:00:18]} Bg4 {[%emt 0:00:11]} 19. Qd3 {[%emt 0:00:01]} Rae8 {
[%emt 0:00:11]} 20. Nd2 {[%emt 0:00:04]} Re6 {[%emt 0:00:03]} 21. Bd1 {
[%emt 0:00:35]} Rfe8 {[%emt 0:00:47]} 22. Bxg4 {[%emt 0:00:04]} Qxg4 {
[%emt 0:00:02]} 23. Nf1 {[%emt 0:00:02]} Nf4 {[%emt 0:00:07]} 24. Bxf4 {
[%emt 0:00:05]} Rxe1 {[%emt 0:00:03]} 25. Rxe1 {[%emt 0:00:01]} Rxe1 {
[%emt 0:00:03]} 26. Bxd6 {[%emt 0:00:01]} Qd1 {[%emt 0:00:05]} 27. Qxd1 {
[%emt 0:00:06]} Rxd1 {[%emt 0:00:01]} 28. Kg2 {[%emt 0:00:04]} Rb1 {
[%emt 0:00:02]} 29. b4 {[%emt 0:00:02]} Rb2 {[%emt 0:00:04]} 30. Kf3 {
[%emt 0:00:13]} Rxa2 {[%emt 0:00:02]} 31. Ne3 {[%emt 0:00:02]} f6 {
[%emt 0:00:06]} 32. h4 {[%emt 0:00:06]} Kf7 {[%emt 0:00:02]} 33. g4 {
[%emt 0:00:02]} g6 {[%emt 0:00:02]} 34. g5 {[%emt 0:00:02]} Ra3 {[%emt 0:00:05]
} 35. Nd1 {[%emt 0:00:04]} Ra1 {[%emt 0:00:02]} 36. Ke2 {[%emt 0:00:01]} Ra2+ {
[%emt 0:00:01]} 37. Kd3 {[%emt 0:00:01]} f5 {[%emt 0:00:02]} 38. Bg3 {
[%emt 0:00:05]} Ke6 {[%emt 0:00:03]} 39. Ne3 {[%emt 0:00:00]} Ra3 {
[%emt 0:00:03]} 40. Ng2 {[%emt 0:00:02]} a5 {[%emt 0:00:01]} 41. Nf4+ {
[%emt 0:00:01]} Kf7 {[%emt 0:00:02]} 42. bxa5 {[%emt 0:00:01]} Rxa5 {
[%emt 0:00:02]} 43. Ne2 {[%emt 0:00:02]} Ra3 {[%emt 0:00:02]} 44. Bf4 {
[%emt 0:00:01]} Ke6 {[%emt 0:00:02]} 45. Bd2 {[%emt 0:00:01]} b4 {
[%emt 0:00:02]} 46. Bc1 {[%emt 0:00:10]} Ra4 {[%emt 0:00:20]} 47. Nf4+ {
[%emt 0:00:01]} Kf7 {[%emt 0:00:02]} 48. cxb4 {[%emt 0:00:01]} Rxb4 {
[%emt 0:00:01]} 49. Bd2 {[%emt 0:00:00]} Rb2 {[%emt 0:00:01]} 50. Ke3 {
[%emt 0:00:02]} Rb3+ {[%emt 0:00:02]} 51. Nd3 {[%emt 0:00:02]} Ke6 {
[%emt 0:00:03]} 52. Ke2 {[%emt 0:00:01]} Rb1 {[%emt 0:00:02]} 53. Nf4+ {
[%emt 0:00:02]} Kf7 {[%emt 0:00:01]} 54. h5 {[%emt 0:00:01]} gxh5 {
[%emt 0:00:03]} 55. Nxh5 {[%emt 0:00:01]} Rh1 {[%emt 0:00:03]} 56. Ng3 {
[%emt 0:00:02]} Rb1 {[%emt 0:00:02]} 57. Nxf5 {[%emt 0:00:01]} Rb2 {
[%emt 0:00:02]} 58. Ne3 {[%emt 0:00:02]} Rb5 {[%emt 0:00:03]} 59. f4 {
[%emt 0:00:01]} c5 {[%emt 0:00:02]} 60. dxc5 {[%emt 0:00:01]} Rxc5 {
[%emt 0:00:01]} 61. Kf3 {[%emt 0:00:01]} Rb5 {[%emt 0:00:05]} 62. Kg4 {
[%emt 0:00:02]} Rb2 {[%emt 0:00:05]} 63. Bc3 {[%emt 0:00:01]} Re2 {
[%emt 0:00:02]} 64. Bd4 {[%emt 0:00:01]} Re1 {[%emt 0:00:02]} 65. Kf5 {
[%emt 0:00:02]} Rg1 {[%emt 0:00:02]} 66. Ng4 {
Zeit  (Lag: Av=0.61s, max=1.8s) [%emt 0:00:01]} 1-0

[Event "12h Blitz Kuppenheim Vorrunde"]
[Site "Kuppenheim"]
[Date "2005.06.03"]
[Round "?"]
[White "Fischer"]
[Black "KingLoek"]
[Result "0-1"]
[ECO "B87"]
[WhiteElo "2010"]
[BlackElo "2685"]
[PlyCount "34"]
[EventDate "2005.06.03"]
[EventType "blitz"]
[Source "Kuppenheim"]
[SourceDate "2005.01.01"]
[TimeControl "240"]

1. e4 {[%emt 0:00:02]} c5 {[%emt 0:00:01]} 2. Nf3 {[%emt 0:00:02]} d6 {
[%emt 0:00:01]} 3. d4 {[%emt 0:00:02]} cxd4 {[%emt 0:00:00]} 4. Nxd4 {
[%emt 0:00:02]} Nf6 {[%emt 0:00:00]} 5. Nc3 {[%emt 0:00:02]} a6 {[%emt 0:00:03]
} 6. Bc4 {[%emt 0:00:06]} e6 {[%emt 0:00:02]} 7. Bb3 {[%emt 0:00:09]} Be7 {
[%emt 0:00:06]} 8. O-O {[%emt 0:00:04]} O-O {[%emt 0:00:02]} 9. f4 {
[%emt 0:00:04]} b5 {[%emt 0:00:02]} 10. e5 {[%emt 0:00:06]} dxe5 {
[%emt 0:00:01]} 11. fxe5 {[%emt 0:00:02]} Bc5 {[%emt 0:00:01]} 12. Be3 {
[%emt 0:00:08]} Nc6 {[%emt 0:00:03]} 13. Nxc6 {[%emt 0:00:46]} Bxe3+ {
[%emt 0:00:02]} 14. Kh1 {[%emt 0:00:03]} Qxd1 {[%emt 0:00:04]} 15. Raxd1 {
[%emt 0:00:09]} Ng4 {[%emt 0:00:06]} 16. Ne4 {[%emt 0:00:11]} Bb7 {
[%emt 0:00:04]} 17. Rd7 {[%emt 0:00:11]} Bxc6 {
Kuppenheim gibt auf  (Lag: Av=0.63s, max=1.7s) [%emt 0:00:05]} 0-1

[Event "12h Blitz Kuppenheim Vorrunde"]
[Site "Kuppenheim"]
[Date "2005.06.03"]
[Round "?"]
[White "KingLoek"]
[Black "Vvernyy"]
[Result "1-0"]
[ECO "A46"]
[WhiteElo "2685"]
[BlackElo "1980"]
[PlyCount "61"]
[EventDate "2005.06.03"]
[EventType "blitz"]
[Source "Kuppenheim"]
[SourceDate "2005.01.01"]
[TimeControl "240"]

1. d4 {[%emt 0:00:01]} Nf6 {[%emt 0:00:06]} 2. Nf3 {[%emt 0:00:05]} g5 {
[%emt 0:00:03]} 3. Bxg5 {[%emt 0:00:07]} Bg7 {[%emt 0:00:03]} 4. Nbd2 {
[%emt 0:00:03]} O-O {[%emt 0:00:04]} 5. e4 {[%emt 0:00:01]} d6 {[%emt 0:00:03]}
6. Bd3 {[%emt 0:00:02]} Nc6 {[%emt 0:00:08]} 7. c3 {[%emt 0:00:09]} e5 {
[%emt 0:00:04]} 8. O-O {[%emt 0:00:10]} Bg4 {[%emt 0:00:05]} 9. Qc2 {
[%emt 0:00:10]} exd4 {[%emt 0:00:08]} 10. cxd4 {[%emt 0:00:02]} Nb4 {
[%emt 0:00:07]} 11. Qb3 {[%emt 0:00:02]} Nxd3 {[%emt 0:00:03]} 12. Qxd3 {
[%emt 0:00:03]} Qd7 {[%emt 0:00:07]} 13. Nh4 {[%emt 0:00:06]} Bh5 {
[%emt 0:00:24]} 14. Nf5 {[%emt 0:00:05]} Bg6 {[%emt 0:00:26]} 15. Nxg7 {
[%emt 0:00:02]} Kxg7 {[%emt 0:00:03]} 16. Qf3 {[%emt 0:00:03]} Ne8 {
[%emt 0:00:06]} 17. Rfe1 {[%emt 0:00:06]} f6 {[%emt 0:00:04]} 18. Bh4 {
[%emt 0:00:02]} c5 {[%emt 0:00:07]} 19. d5 {[%emt 0:00:05]} Nc7 {[%emt 0:00:06]
} 20. g4 {[%emt 0:00:04]} Rae8 {[%emt 0:00:03]} 21. a4 {[%emt 0:00:06]} Qf7 {
[%emt 0:00:08]} 22. Nc4 {[%emt 0:00:07]} Rd8 {[%emt 0:00:09]} 23. Bg3 {
[%emt 0:00:02]} Ne8 {[%emt 0:00:06]} 24. h3 {[%emt 0:00:06]} h5 {[%emt 0:00:13]
} 25. Qc3 {[%emt 0:00:03]} Rh8 {[%emt 0:00:06]} 26. f4 {[%emt 0:00:04]} hxg4 {
[%emt 0:00:03]} 27. hxg4 {[%emt 0:00:01]} Qg8 {[%emt 0:00:23]} 28. f5 {
[%emt 0:00:05]} Rh3 {[%emt 0:00:03]} 29. Kg2 {[%emt 0:00:06]} Bxf5 {
[%emt 0:00:09]} 30. exf5 {[%emt 0:00:12]} Qh7 {[%emt 0:00:06]} 31. Re7+ {
Zeit  (Lag: Av=0.62s, max=1.5s) [%emt 0:00:03]} 1-0

[Event "12h Blitz Kuppenheim Vorrunde"]
[Site "Kuppenheim"]
[Date "2005.06.03"]
[Round "?"]
[White "Telljohann"]
[Black "KingLoek"]
[Result "0-1"]
[ECO "A07"]
[WhiteElo "2375"]
[BlackElo "2685"]
[PlyCount "110"]
[EventDate "2005.06.03"]
[EventType "blitz"]
[Source "Kuppenheim"]
[SourceDate "2005.01.01"]
[TimeControl "240"]

1. Nf3 {[%emt 0:00:02]} Nf6 {[%emt 0:00:03]} 2. g3 {[%emt 0:00:00]} d5 {
[%emt 0:00:01]} 3. Bg2 {[%emt 0:00:00]} Bf5 {[%emt 0:00:01]} 4. O-O {
[%emt 0:00:00]} e6 {[%emt 0:00:01]} 5. d3 {[%emt 0:00:01]} h6 {[%emt 0:00:02]}
6. b3 {[%emt 0:00:01]} Be7 {[%emt 0:00:04]} 7. Bb2 {[%emt 0:00:01]} O-O {
[%emt 0:00:01]} 8. c4 {[%emt 0:00:00]} c5 {[%emt 0:00:02]} 9. a3 {
[%emt 0:00:01]} Nc6 {[%emt 0:00:02]} 10. cxd5 {[%emt 0:00:02]} exd5 {
[%emt 0:00:01]} 11. d4 {[%emt 0:00:03]} Ne4 {[%emt 0:00:11]} 12. e3 {
[%emt 0:00:10]} Bf6 {[%emt 0:00:03]} 13. Nc3 {[%emt 0:00:24]} cxd4 {
[%emt 0:00:11]} 14. Nxe4 {[%emt 0:00:14]} dxe4 {[%emt 0:00:01]} 15. Nxd4 {
[%emt 0:00:02]} Nxd4 {[%emt 0:00:01]} 16. Bxd4 {[%emt 0:00:05]} Bxd4 {
[%emt 0:00:01]} 17. exd4 {[%emt 0:00:01]} Qd5 {[%emt 0:00:03]} 18. Qh5 {
[%emt 0:00:37]} Rad8 {[%emt 0:00:14]} 19. Rfd1 {[%emt 0:00:06]} Be6 {
[%emt 0:00:22]} 20. Qxd5 {[%emt 0:00:08]} Bxd5 {[%emt 0:00:02]} 21. b4 {
[%emt 0:00:02]} Rc8 {[%emt 0:00:01]} 22. Rac1 {[%emt 0:00:02]} Rfd8 {
[%emt 0:00:05]} 23. Bh3 {[%emt 0:00:05]} Rxc1 {[%emt 0:00:04]} 24. Rxc1 {
[%emt 0:00:01]} Bc6 {[%emt 0:00:01]} 25. Rd1 {[%emt 0:00:04]} g6 {
[%emt 0:00:02]} 26. Kf1 {[%emt 0:00:01]} f5 {[%emt 0:00:05]} 27. Ke2 {
[%emt 0:00:01]} Kf7 {[%emt 0:00:01]} 28. Ke3 {[%emt 0:00:01]} Kf6 {
[%emt 0:00:01]} 29. Rc1 {[%emt 0:00:03]} g5 {[%emt 0:00:02]} 30. Rc5 {
[%emt 0:00:03]} f4+ {[%emt 0:00:07]} 31. gxf4 {[%emt 0:00:01]} gxf4+ {
[%emt 0:00:00]} 32. Kxf4 {[%emt 0:00:02]} Rxd4 {[%emt 0:00:00]} 33. b5 {
[%emt 0:00:05]} Bd5 {[%emt 0:00:05]} 34. Bg2 {[%emt 0:00:09]} b6 {
[%emt 0:00:12]} 35. Rc7 {[%emt 0:00:02]} Ra4 {[%emt 0:00:02]} 36. Bf1 {
[%emt 0:00:05]} Rxa3 {[%emt 0:00:02]} 37. Be2 {[%emt 0:00:03]} Rh3 {
[%emt 0:00:07]} 38. Rd7 {[%emt 0:00:03]} Be6 {[%emt 0:00:16]} 39. Rd6 {
[%emt 0:00:01]} Rxh2 {[%emt 0:00:02]} 40. Bg4 {[%emt 0:00:03]} Rxf2+ {
[%emt 0:00:03]} 41. Kg3 {[%emt 0:00:02]} Rf5 {[%emt 0:00:01]} 42. Bxf5 {
[%emt 0:00:03]} Kxf5 {[%emt 0:00:02]} 43. Rc6 {[%emt 0:00:01]} h5 {
[%emt 0:00:04]} 44. Rc7 {[%emt 0:00:01]} h4+ {[%emt 0:00:01]} 45. Kxh4 {
[%emt 0:00:01]} Kf4 {[%emt 0:00:01]} 46. Rxa7 {[%emt 0:00:05]} e3 {
[%emt 0:00:01]} 47. Re7 {[%emt 0:00:04]} Bf5 {[%emt 0:00:03]} 48. Ra7 {
[%emt 0:00:08]} e2 {[%emt 0:00:03]} 49. Ra1 {[%emt 0:00:03]} Bd3 {
[%emt 0:00:02]} 50. Kh5 {[%emt 0:00:05]} Bxb5 {[%emt 0:00:03]} 51. Kg6 {
[%emt 0:00:01]} Bd3+ {[%emt 0:00:01]} 52. Kf6 {[%emt 0:00:01]} b5 {
[%emt 0:00:01]} 53. Ke6 {[%emt 0:00:01]} b4 {[%emt 0:00:01]} 54. Kd5 {
[%emt 0:00:01]} Ke3 {[%emt 0:00:02]} 55. Rg1 {[%emt 0:00:19]} b3 {
Kuppenheim gibt auf  (Lag: Av=0.66s, max=1.7s) [%emt 0:00:02]} 0-1